[Event "Titled Tuesday Blitz January 31 Late 2023"]
[White "Kourkoulos-Arditis, Stamatis"]
[Black "Cruz, William Ferreira Da"]
[WhiteFideId "4221990"]
[BlackFideId "2118050"]
[WhiteElo "2539"]
[BlackElo "2216"]
[Result "1-0"]
[Round "09"]
[TimeControl "180+2"]
[Date "2023.01.31"]
[WhiteClock "0:01:46"]
[BlackClock "0:00:25"]

1. e4 {[%clk 0:02:58]}  e6 {[%clk 0:02:26]} 2. d4 {[%clk 0:02:58]}  d5 {[%clk 0:02:25]} 3. Nd2 {[%clk 0:02:58]}  Be7 {[%clk 0:02:23]} 4. Ngf3 {[%clk 0:02:54]}  Nf6 {[%clk 0:02:23]} 5. e5 {[%clk 0:02:54]}  Nfd7 {[%clk 0:02:23]} 6. Bd3 {[%clk 0:02:54]}  c5 {[%clk 0:02:23]} 7. c3 {[%clk 0:02:55]}  Nc6 {[%clk 0:02:23]} 8. O-O {[%clk 0:02:54]}  cxd4 {[%clk 0:02:21]} 9. cxd4 {[%clk 0:02:54]}  a5 {[%clk 0:02:22]} 10. a4 {[%clk 0:02:49]}  Nb4 {[%clk 0:02:21]} 11. Bb1 {[%clk 0:02:48]}  b6 {[%clk 0:02:21]} 12. Re1 {[%clk 0:02:47]}  Ba6 {[%clk 0:02:21]} 13. Ra3 {[%clk 0:02:46]}  Rc8 {[%clk 0:02:06]} 14. Nf1 {[%clk 0:02:46]}  Qc7 {[%clk 0:02:00]} 15. Rc3 {[%clk 0:02:40]}  Qb7 {[%clk 0:01:59]} 16. Ng3 {[%clk 0:02:39]}  Rc4 {[%clk 0:01:33]} 17. Nh5 {[%clk 0:02:36]}  Bf8 {[%clk 0:01:32]} 18. Ng5 {[%clk 0:02:06]}  h6 {[%clk 0:01:25]} 19. Nxf7 {[%clk 0:02:07]}  Kxf7 {[%clk 0:01:24]} 20. Qg4 {[%clk 0:02:07]}  Rxc3 {[%clk 0:01:17]} 21. Bg6+ {[%clk 0:01:52]}  Ke7 {[%clk 0:01:15]} 22. Qh4+ {[%clk 0:01:52]}  Nf6 {[%clk 0:01:08]} 23. exf6+ {[%clk 0:01:52]}  Kd7 {[%clk 0:01:07]} 24. bxc3 {[%clk 0:01:52]}  Nd3 {[%clk 0:00:40]} 25. Bxd3 {[%clk 0:01:52]}  Bxd3 {[%clk 0:00:40]} 26. fxg7 {[%clk 0:01:53]}  Bxg7 {[%clk 0:00:37]} 27. Nxg7 {[%clk 0:01:54]}  Be4 {[%clk 0:00:33]} 28. f3 {[%clk 0:01:49]}  Kc6 {[%clk 0:00:32]} 29. Qf6 {[%clk 0:01:45]}  Rg8 {[%clk 0:00:27]} 30. Qxe6+ {[%clk 0:01:45]}  Kc7 {[%clk 0:00:25]} 31. Bf4+ {[%clk 0:01:45]}  Kd8 {[%clk 0:00:25]} 32. Qxg8+ {[%clk 0:01:46]}  Ke7 {[%clk 0:00:25]} 33. Qe8+ {[%clk 0:01:46]} 1-0


[Site "https://www.chess.com"]

[Event "Titled Tuesday Blitz January 31 Late 2023"]
[White "Kavutskiy, Konstantin"]
[Black "Deviprasath, Sharvesh"]
[WhiteFideId "2026384"]
[BlackFideId "30938228"]
[WhiteElo "2414"]
[BlackElo "2296"]
[Result "0-1"]
[Round "09"]
[TimeControl "180+2"]
[Date "2023.01.31"]
[WhiteClock "0:01:02"]
[BlackClock "0:01:15"]

1. d4 {[%clk 0:03:00]}  Nf6 {[%clk 0:02:27]} 2. Bg5 {[%clk 0:02:59]}  Ne4 {[%clk 0:02:27]} 3. Bf4 {[%clk 0:02:59]}  Nc6 {[%clk 0:02:27]} 4. f3 {[%clk 0:02:57]}  Nf6 {[%clk 0:02:27]} 5. e4 {[%clk 0:02:55]}  d6 {[%clk 0:02:27]} 6. d5 {[%clk 0:02:50]}  Ne5 {[%clk 0:02:21]} 7. Qd2 {[%clk 0:02:45]}  g6 {[%clk 0:02:19]} 8. c4 {[%clk 0:02:43]}  Bg7 {[%clk 0:02:13]} 9. Nc3 {[%clk 0:02:43]}  O-O {[%clk 0:02:13]} 10. Bxe5 {[%clk 0:02:21]}  dxe5 {[%clk 0:02:13]} 11. c5 {[%clk 0:02:17]}  e6 {[%clk 0:01:53]} 12. Bc4 {[%clk 0:02:11]}  exd5 {[%clk 0:01:51]} 13. Nxd5 {[%clk 0:02:11]}  c6 {[%clk 0:01:49]} 14. Ne3 {[%clk 0:02:00]}  Bh6 {[%clk 0:01:41]} 15. Qxd8 {[%clk 0:01:55]}  Rxd8 {[%clk 0:01:42]} 16. Ke2 {[%clk 0:01:55]}  Rd4 {[%clk 0:01:40]} 17. b3 {[%clk 0:01:51]}  b5 {[%clk 0:01:34]} 18. cxb6 {[%clk 0:01:47]}  axb6 {[%clk 0:01:35]} 19. a4 {[%clk 0:01:39]}  b5 {[%clk 0:01:33]} 20. Bd3 {[%clk 0:01:34]}  Be6 {[%clk 0:01:29]} 21. Nc2 {[%clk 0:01:32]}  Rd6 {[%clk 0:01:24]} 22. axb5 {[%clk 0:01:25]}  Rxa1 {[%clk 0:01:25]} 23. Nxa1 {[%clk 0:01:25]}  cxb5 {[%clk 0:01:26]} 24. Nh3 {[%clk 0:01:23]}  Bxh3 {[%clk 0:01:23]} 25. gxh3 {[%clk 0:01:24]}  Nh5 {[%clk 0:01:24]} 26. Bxb5 {[%clk 0:01:19]}  Rd2+ {[%clk 0:01:19]} 27. Ke1 {[%clk 0:01:02]}  Ra2 {[%clk 0:01:15]} 0-1


[Site "https://www.chess.com"]

[Event "Titled Tuesday Blitz January 31 Late 2023"]
[White "Bas Mas, Jose Joaquin"]
[Black "Kim, Sergey"]
[WhiteFideId "22219064"]
[BlackFideId "13700570"]
[WhiteElo "2197"]
[BlackElo "2295"]
[Result "1-0"]
[Round "09"]
[TimeControl "180+2"]
[Date "2023.01.31"]
[WhiteClock "0:00:05"]
[BlackClock "0:00:01"]

1. e4 {[%clk 0:03:00]}  e5 {[%clk 0:02:57]} 2. Nc3 {[%clk 0:02:58]}  Nf6 {[%clk 0:02:56]} 3. f4 {[%clk 0:02:57]}  d5 {[%clk 0:02:55]} 4. fxe5 {[%clk 0:02:49]}  Nxe4 {[%clk 0:02:55]} 5. Nf3 {[%clk 0:02:46]}  Be7 {[%clk 0:02:50]} 6. d3 {[%clk 0:02:45]}  Nxc3 {[%clk 0:02:49]} 7. bxc3 {[%clk 0:02:46]}  c5 {[%clk 0:02:49]} 8. Ke2 {[%clk 0:02:46]}  Nc6 {[%clk 0:02:48]} 9. Kf2 {[%clk 0:02:45]}  Be6 {[%clk 0:02:43]} 10. Be2 {[%clk 0:02:45]}  h6 {[%clk 0:02:42]} 11. Rf1 {[%clk 0:02:39]}  Qd7 {[%clk 0:02:42]} 12. Kg1 {[%clk 0:02:38]}  O-O-O {[%clk 0:02:40]} 13. a4 {[%clk 0:02:34]}  g5 {[%clk 0:02:39]} 14. d4 {[%clk 0:02:31]}  g4 {[%clk 0:02:32]} 15. Ne1 {[%clk 0:02:31]}  c4 {[%clk 0:02:32]} 16. Ba3 {[%clk 0:02:26]}  Bxa3 {[%clk 0:02:25]} 17. Rxa3 {[%clk 0:02:27]}  h5 {[%clk 0:02:25]} 18. a5 {[%clk 0:02:25]}  Rdf8 {[%clk 0:02:16]} 19. Ra1 {[%clk 0:02:08]}  Qe7 {[%clk 0:02:13]} 20. Qc1 {[%clk 0:02:05]}  f6 {[%clk 0:02:09]} 21. exf6 {[%clk 0:02:00]}  Rxf6 {[%clk 0:02:09]} 22. Rxf6 {[%clk 0:01:53]}  Qxf6 {[%clk 0:02:09]} 23. Qe3 {[%clk 0:01:48]}  Bd7 {[%clk 0:01:56]} 24. g3 {[%clk 0:01:29]}  Re8 {[%clk 0:01:53]} 25. Qf2 {[%clk 0:01:29]}  Qe7 {[%clk 0:01:48]} 26. Bf1 {[%clk 0:01:29]}  Rf8 {[%clk 0:01:45]} 27. Qe2 {[%clk 0:01:26]}  Qf7 {[%clk 0:01:38]} 28. Ng2 {[%clk 0:01:23]}  Bf5 {[%clk 0:01:33]} 29. Nf4 {[%clk 0:01:23]}  Be4 {[%clk 0:01:29]} 30. Bg2 {[%clk 0:01:23]}  Re8 {[%clk 0:01:28]} 31. Re1 {[%clk 0:01:22]}  Nxa5 {[%clk 0:01:25]} 32. Qd1 {[%clk 0:01:13]}  Bxg2 {[%clk 0:01:20]} 33. Kxg2 {[%clk 0:01:12]}  Nc6 {[%clk 0:01:15]} 34. Re2 {[%clk 0:01:05]}  Rxe2+ {[%clk 0:01:10]} 35. Qxe2 {[%clk 0:01:06]}  h4 {[%clk 0:01:08]} 36. Qxg4+ {[%clk 0:01:03]}  Kc7 {[%clk 0:01:07]} 37. Ne6+ {[%clk 0:01:01]}  Kd6 {[%clk 0:01:03]} 38. Nc5 {[%clk 0:01:02]}  b6 {[%clk 0:00:52]} 39. Na6 {[%clk 0:00:55]}  Qe7 {[%clk 0:00:24]} 40. Qf4+ {[%clk 0:00:49]}  Ke6 {[%clk 0:00:23]} 41. Nc7+ {[%clk 0:00:44]}  Kd7 {[%clk 0:00:21]} 42. Nxd5 {[%clk 0:00:45]}  Qe2+ {[%clk 0:00:21]} 43. Qf2 {[%clk 0:00:37]}  Qe4+ {[%clk 0:00:20]} 44. Qf3 {[%clk 0:00:37]}  Qxc2+ {[%clk 0:00:19]} 45. Kh3 {[%clk 0:00:38]}  Qg6 {[%clk 0:00:14]} 46. Nf6+ {[%clk 0:00:34]}  Ke7 {[%clk 0:00:11]} 47. Qxc6 {[%clk 0:00:28]}  Qxf6 {[%clk 0:00:11]} 48. Qc7+ {[%clk 0:00:29]}  Kf8 {[%clk 0:00:10]} 49. Qxa7 {[%clk 0:00:28]}  hxg3 {[%clk 0:00:10]} 50. Qb8+ {[%clk 0:00:25]}  Kf7 {[%clk 0:00:10]} 51. Qc7+ {[%clk 0:00:25]}  Kf8 {[%clk 0:00:09]} 52. Qxg3 {[%clk 0:00:24]}  Qe6+ {[%clk 0:00:08]} 53. Kg2 {[%clk 0:00:24]}  Ke7 {[%clk 0:00:05]} 54. Qc7+ {[%clk 0:00:20]}  Kf6 {[%clk 0:00:04]} 55. Qf4+ {[%clk 0:00:19]}  Ke7 {[%clk 0:00:04]} 56. Kf3 {[%clk 0:00:15]}  Qh3+ {[%clk 0:00:02]} 57. Qg3 {[%clk 0:00:11]}  Qf5+ {[%clk 0:00:02]} 58. Kg2 {[%clk 0:00:08]}  Qc2+ {[%clk 0:00:01]} 59. Kh3 {[%clk 0:00:07]}  Qd3 {[%clk 0:00:01]} 60. Kh4 {[%clk 0:00:05]} 1-0


[Site "https://www.chess.com"]

[Event "Titled Tuesday Blitz January 31 Late 2023"]
[White "Danielyan, Vahe"]
[Black "Omelja, Artem"]
[WhiteFideId "13304828"]
[BlackFideId "14119846"]
[WhiteElo "2346"]
[BlackElo "2446"]
[Result "1-0"]
[Round "09"]
[TimeControl "180+2"]
[Date "2023.01.31"]
[WhiteClock "0:00:33"]
[BlackClock "0:00:03"]

1. e4 {[%clk 0:02:58]}  c5 {[%clk 0:02:38]} 2. Nc3 {[%clk 0:02:56]}  a6 {[%clk 0:02:37]} 3. g3 {[%clk 0:02:55]}  b5 {[%clk 0:02:34]} 4. Bg2 {[%clk 0:02:56]}  Bb7 {[%clk 0:02:35]} 5. Nge2 {[%clk 0:02:55]}  e6 {[%clk 0:02:34]} 6. d4 {[%clk 0:02:55]}  Nf6 {[%clk 0:02:26]} 7. O-O {[%clk 0:02:45]}  b4 {[%clk 0:02:25]} 8. Na4 {[%clk 0:02:43]}  Bxe4 {[%clk 0:02:25]} 9. Nxc5 {[%clk 0:02:40]}  Bxg2 {[%clk 0:02:23]} 10. Kxg2 {[%clk 0:02:40]}  Nc6 {[%clk 0:02:22]} 11. Be3 {[%clk 0:02:34]}  Be7 {[%clk 0:02:17]} 12. a3 {[%clk 0:02:15]}  O-O {[%clk 0:02:13]} 13. axb4 {[%clk 0:02:13]}  Nxb4 {[%clk 0:02:13]} 14. c3 {[%clk 0:02:13]}  Nbd5 {[%clk 0:02:09]} 15. Qd3 {[%clk 0:02:00]}  Nxe3+ {[%clk 0:02:07]} 16. Qxe3 {[%clk 0:01:58]}  Qb6 {[%clk 0:02:05]} 17. Nd3 {[%clk 0:01:48]}  Rfc8 {[%clk 0:02:01]} 18. Qf3 {[%clk 0:01:46]}  Rab8 {[%clk 0:02:00]} 19. Ra4 {[%clk 0:01:43]}  Rc7 {[%clk 0:01:31]} 20. Rfa1 {[%clk 0:01:42]}  Ra7 {[%clk 0:01:31]} 21. b4 {[%clk 0:01:42]}  d5 {[%clk 0:01:18]} 22. Nc5 {[%clk 0:01:41]}  Bxc5 {[%clk 0:01:15]} 23. dxc5 {[%clk 0:01:42]}  Qb5 {[%clk 0:01:09]} 24. Nd4 {[%clk 0:01:41]}  Qc4 {[%clk 0:01:09]} 25. Nc6 {[%clk 0:01:41]}  Rba8 {[%clk 0:01:00]} 26. Nxa7 {[%clk 0:01:40]}  Rxa7 {[%clk 0:01:01]} 27. Qe3 {[%clk 0:01:27]}  h6 {[%clk 0:00:46]} 28. Qd4 {[%clk 0:01:26]}  Qb5 {[%clk 0:00:45]} 29. Ra5 {[%clk 0:01:26]}  Qe2 {[%clk 0:00:32]} 30. c6 {[%clk 0:01:26]}  Rc7 {[%clk 0:00:30]} 31. Rxa6 {[%clk 0:01:26]}  Ne4 {[%clk 0:00:30]} 32. Ra8+ {[%clk 0:01:21]}  Kh7 {[%clk 0:00:29]} 33. R1a7 {[%clk 0:01:21]}  Rxa7 {[%clk 0:00:14]} 34. Rxa7 {[%clk 0:01:22]}  Nd2 {[%clk 0:00:14]} 35. Ra1 {[%clk 0:00:56]}  Nb3 {[%clk 0:00:13]} 36. Qd1 {[%clk 0:00:52]}  Qe4+ {[%clk 0:00:13]} 37. f3 {[%clk 0:00:53]}  Qc4 {[%clk 0:00:14]} 38. Ra3 {[%clk 0:00:42]}  Qxc3 {[%clk 0:00:01]} 39. Rxb3 {[%clk 0:00:41]}  Qxc6 {[%clk 0:00:02]} 40. b5 {[%clk 0:00:42]}  Qb6 {[%clk 0:00:02]} 41. Qb1+ {[%clk 0:00:38]}  f5 {[%clk 0:00:02]} 42. Rc3 {[%clk 0:00:39]}  Qd4 {[%clk 0:00:02]} 43. Rc2 {[%clk 0:00:36]}  Qd3 {[%clk 0:00:01]} 44. b6 {[%clk 0:00:35]}  f4 {[%clk 0:00:02]} 45. b7 {[%clk 0:00:35]}  fxg3 {[%clk 0:00:03]} 46. Rb2 {[%clk 0:00:34]}  Qxb1 {[%clk 0:00:01]} 47. Rxb1 {[%clk 0:00:35]}  gxh2 {[%clk 0:00:01]} 48. b8=Q {[%clk 0:00:36]}  e5 {[%clk 0:00:01]} 49. Qxe5 {[%clk 0:00:35]}  h1=Q+ {[%clk 0:00:02]} 50. Kxh1 {[%clk 0:00:35]}  d4 {[%clk 0:00:03]} 51. Qf5+ {[%clk 0:00:34]}  g6 {[%clk 0:00:02]} 52. Rb7+ {[%clk 0:00:35]}  Kh8 {[%clk 0:00:03]} 53. Qf8# {[%clk 0:00:33]} 1-0


[Site "https://www.chess.com"]

[Event "Titled Tuesday Blitz January 31 Late 2023"]
[White "Melikhov, Evgeny V."]
[Black "ArchibaldCerveza29"]
[WhiteFideId "4122046"]
[WhiteElo "2269"]
[BlackElo "2532"]
[Result "0-1"]
[Round "09"]
[TimeControl "180+2"]
[Date "2023.01.31"]
[WhiteClock "0:00:01"]
[BlackClock "0:00:34"]

1. d4 {[%clk 0:03:00]}  d5 {[%clk 0:03:00]} 2. c4 {[%clk 0:03:00]}  e6 {[%clk 0:03:00]} 3. Nc3 {[%clk 0:03:00]}  Nf6 {[%clk 0:03:00]} 4. cxd5 {[%clk 0:03:00]}  exd5 {[%clk 0:03:01]} 5. Bg5 {[%clk 0:03:00]}  c6 {[%clk 0:03:02]} 6. Qc2 {[%clk 0:03:00]}  Bd6 {[%clk 0:02:59]} 7. e3 {[%clk 0:02:54]}  O-O {[%clk 0:02:57]} 8. Bd3 {[%clk 0:02:53]}  h6 {[%clk 0:02:56]} 9. Bh4 {[%clk 0:02:52]}  Re8 {[%clk 0:02:57]} 10. Nge2 {[%clk 0:02:42]}  a5 {[%clk 0:02:57]} 11. h3 {[%clk 0:02:36]}  Na6 {[%clk 0:02:57]} 12. a3 {[%clk 0:02:35]}  Nc7 {[%clk 0:02:58]} 13. O-O {[%clk 0:02:35]}  Ne6 {[%clk 0:02:58]} 14. Bg3 {[%clk 0:02:20]}  b5 {[%clk 0:02:49]} 15. Bxd6 {[%clk 0:02:17]}  Qxd6 {[%clk 0:02:50]} 16. Rac1 {[%clk 0:02:04]}  Bd7 {[%clk 0:02:49]} 17. Qd2 {[%clk 0:01:59]}  Ng5 {[%clk 0:02:47]} 18. Nf4 {[%clk 0:01:55]}  h5 {[%clk 0:02:38]} 19. Bb1 {[%clk 0:01:45]}  h4 {[%clk 0:02:38]} 20. Rfe1 {[%clk 0:00:59]}  Re7 {[%clk 0:02:34]} 21. Bd3 {[%clk 0:00:50]}  Rae8 {[%clk 0:02:33]} 22. Nce2 {[%clk 0:00:49]}  Nge4 {[%clk 0:02:28]} 23. Bxe4 {[%clk 0:00:49]}  Nxe4 {[%clk 0:02:29]} 24. Qxa5 {[%clk 0:00:48]}  Nxf2 {[%clk 0:02:00]} 25. Kxf2 {[%clk 0:00:48]}  Rxe3 {[%clk 0:02:01]} 26. Qd2 {[%clk 0:00:40]}  g5 {[%clk 0:01:47]} 27. Nd3 {[%clk 0:00:20]}  Qh2 {[%clk 0:01:36]} 28. Ng1 {[%clk 0:00:17]}  Qg3+ {[%clk 0:01:32]} 29. Kf1 {[%clk 0:00:17]}  Rxd3 {[%clk 0:01:32]} 30. Rxe8+ {[%clk 0:00:16]}  Bxe8 {[%clk 0:01:33]} 31. Qf2 {[%clk 0:00:16]}  Qxf2+ {[%clk 0:01:31]} 32. Kxf2 {[%clk 0:00:16]}  Rd2+ {[%clk 0:01:32]} 33. Ne2 {[%clk 0:00:14]}  Rxb2 {[%clk 0:01:33]} 34. Ke3 {[%clk 0:00:13]}  Rb3+ {[%clk 0:01:32]} 35. Rc3 {[%clk 0:00:12]}  Rxc3+ {[%clk 0:01:31]} 36. Nxc3 {[%clk 0:00:12]}  f5 {[%clk 0:01:31]} 37. a4 {[%clk 0:00:12]}  bxa4 {[%clk 0:01:25]} 38. Nxa4 {[%clk 0:00:12]}  Kg7 {[%clk 0:01:26]} 39. Nc5 {[%clk 0:00:12]}  Kf6 {[%clk 0:01:26]} 40. Kf3 {[%clk 0:00:12]}  Bh5+ {[%clk 0:01:26]} 41. Kf2 {[%clk 0:00:12]}  Bd1 {[%clk 0:01:27]} 42. g3 {[%clk 0:00:11]}  hxg3+ {[%clk 0:01:25]} 43. Kxg3 {[%clk 0:00:11]}  f4+ {[%clk 0:01:18]} 44. Kf2 {[%clk 0:00:11]}  Kf5 {[%clk 0:01:17]} 45. Ke1 {[%clk 0:00:11]}  Bc2 {[%clk 0:01:14]} 46. Kf2 {[%clk 0:00:11]}  Be4 {[%clk 0:01:11]} 47. Kg1 {[%clk 0:00:09]}  f3 {[%clk 0:01:08]} 48. Kf2 {[%clk 0:00:09]}  Kf4 {[%clk 0:01:09]} 49. Ne6+ {[%clk 0:00:09]}  Kf5 {[%clk 0:01:07]} 50. Nc5 {[%clk 0:00:10]}  g4 {[%clk 0:00:59]} 51. hxg4+ {[%clk 0:00:09]}  Kxg4 {[%clk 0:01:00]} 52. Nd7 {[%clk 0:00:08]}  Kf5 {[%clk 0:00:59]} 53. Nb8 {[%clk 0:00:07]}  c5 {[%clk 0:00:46]} 54. dxc5 {[%clk 0:00:07]}  d4 {[%clk 0:00:47]} 55. c6 {[%clk 0:00:08]}  Ke6 {[%clk 0:00:47]} 56. c7 {[%clk 0:00:08]}  Bb7 {[%clk 0:00:48]} 57. Nc6 {[%clk 0:00:07]}  d3 {[%clk 0:00:40]} 58. Nd8+ {[%clk 0:00:07]}  Kd7 {[%clk 0:00:40]} 59. Nxb7 {[%clk 0:00:07]}  d2 {[%clk 0:00:38]} 60. Nc5+ {[%clk 0:00:02]}  Kxc7 {[%clk 0:00:35]} 61. Ne6+ {[%clk 0:00:01]}  Kc8 {[%clk 0:00:34]} 0-1


[Site "https://www.chess.com"]

[Event "Titled Tuesday Blitz January 31 Late 2023"]
[White "Llanos, Guillermo"]
[Black "Veiga, Jose Francisco R P Neves"]
[WhiteFideId "100358"]
[BlackFideId "1930087"]
[WhiteElo "2290"]
[BlackElo "2406"]
[Result "0-1"]
[Round "09"]
[TimeControl "180+2"]
[Date "2023.01.31"]
[WhiteClock "0:00:04"]
[BlackClock "0:01:00"]

1. Nf3 {[%clk 0:03:00]}  Nc6 {[%clk 0:02:47]} 2. d4 {[%clk 0:02:54]}  d6 {[%clk 0:02:44]} 3. g3 {[%clk 0:02:43]}  Bg4 {[%clk 0:02:43]} 4. Bg2 {[%clk 0:02:42]}  e5 {[%clk 0:02:43]} 5. O-O {[%clk 0:02:39]}  Nf6 {[%clk 0:02:42]} 6. c3 {[%clk 0:02:23]}  Be7 {[%clk 0:02:38]} 7. Re1 {[%clk 0:02:12]}  Qd7 {[%clk 0:02:37]} 8. e4 {[%clk 0:02:10]}  h5 {[%clk 0:02:27]} 9. d5 {[%clk 0:02:05]}  Nd8 {[%clk 0:02:11]} 10. c4 {[%clk 0:02:04]}  h4 {[%clk 0:02:10]} 11. Nc3 {[%clk 0:02:01]}  h3 {[%clk 0:02:10]} 12. Bf1 {[%clk 0:01:56]}  c5 {[%clk 0:02:10]} 13. Be2 {[%clk 0:01:52]}  O-O {[%clk 0:02:04]} 14. Nh4 {[%clk 0:01:42]}  Bxe2 {[%clk 0:02:01]} 15. Qxe2 {[%clk 0:01:42]}  g6 {[%clk 0:01:53]} 16. f4 {[%clk 0:01:26]}  Ng4 {[%clk 0:01:50]} 17. Nf3 {[%clk 0:01:21]}  Bf6 {[%clk 0:01:50]} 18. fxe5 {[%clk 0:01:14]}  Nxe5 {[%clk 0:01:47]} 19. Bf4 {[%clk 0:01:05]}  Re8 {[%clk 0:01:42]} 20. Nxe5 {[%clk 0:01:04]}  Bxe5 {[%clk 0:01:41]} 21. Qf3 {[%clk 0:00:59]}  f5 {[%clk 0:01:14]} 22. Bxe5 {[%clk 0:00:28]}  Rxe5 {[%clk 0:01:13]} 23. exf5 {[%clk 0:00:28]}  Rxf5 {[%clk 0:01:13]} 24. Qe4 {[%clk 0:00:25]}  Nf7 {[%clk 0:01:13]} 25. Qe6 {[%clk 0:00:22]}  Qxe6 {[%clk 0:01:07]} 26. dxe6 {[%clk 0:00:21]}  Ne5 {[%clk 0:01:06]} 27. Nd5 {[%clk 0:00:15]}  Re8 {[%clk 0:01:01]} 28. e7 {[%clk 0:00:04]}  Nf3+ {[%clk 0:01:00]} 0-1


[Site "https://www.chess.com"]

[Event "Titled Tuesday Blitz January 31 Late 2023"]
[White "Fernandez Siles, Luis"]
[Black "Gurevich, Dmitry"]
[WhiteFideId "2209420"]
[BlackFideId "2000407"]
[WhiteElo "2218"]
[BlackElo "2393"]
[Result "0-1"]
[Round "09"]
[TimeControl "180+2"]
[Date "2023.01.31"]
[WhiteClock "0:01:03"]
[BlackClock "0:02:00"]

1. d4 {[%clk 0:03:00]}  Nf6 {[%clk 0:02:59]} 2. c4 {[%clk 0:03:00]}  a6 {[%clk 0:02:59]} 3. Nc3 {[%clk 0:02:51]}  c5 {[%clk 0:02:58]} 4. d5 {[%clk 0:02:48]}  b5 {[%clk 0:02:58]} 5. cxb5 {[%clk 0:02:44]}  axb5 {[%clk 0:02:58]} 6. Nxb5 {[%clk 0:02:44]}  Qa5+ {[%clk 0:02:56]} 7. Nc3 {[%clk 0:02:44]}  Bb7 {[%clk 0:02:56]} 8. Bd2 {[%clk 0:02:35]}  Qb6 {[%clk 0:02:54]} 9. e4 {[%clk 0:02:32]}  e6 {[%clk 0:02:52]} 10. dxe6 {[%clk 0:02:15]}  fxe6 {[%clk 0:02:51]} 11. e5 {[%clk 0:02:05]}  Ne4 {[%clk 0:02:45]} 12. Nxe4 {[%clk 0:01:53]}  Bxe4 {[%clk 0:02:44]} 13. Bc3 {[%clk 0:01:36]}  Be7 {[%clk 0:02:40]} 14. Qg4 {[%clk 0:01:18]}  Bg6 {[%clk 0:02:29]} 15. h4 {[%clk 0:01:18]}  O-O {[%clk 0:02:26]} 16. h5 {[%clk 0:01:18]}  Bf5 {[%clk 0:02:26]} 17. Qg3 {[%clk 0:01:19]}  Nc6 {[%clk 0:02:21]} 18. Bd3 {[%clk 0:01:07]}  Bxd3 {[%clk 0:02:13]} 19. Qxd3 {[%clk 0:01:06]}  c4 {[%clk 0:02:09]} 20. Qxd7 {[%clk 0:01:05]}  Qxf2+ {[%clk 0:02:07]} 21. Kd1 {[%clk 0:01:03]}  Rad8 {[%clk 0:02:00]} 0-1


[Site "https://www.chess.com"]

[Event "Titled Tuesday Blitz January 31 Late 2023"]
[White "Graif, William"]
[Black "Alfaro, William"]
[WhiteFideId "2609835"]
[BlackFideId "6100457"]
[WhiteElo "2304"]
[BlackElo "2134"]
[Result "0-1"]
[Round "09"]
[TimeControl "180+2"]
[Date "2023.01.31"]
[WhiteClock "0:00:01"]
[BlackClock "0:00:47"]

1. e4 {[%clk 0:02:59]}  Nf6 {[%clk 0:02:55]} 2. e5 {[%clk 0:02:56]}  Nd5 {[%clk 0:02:53]} 3. Nc3 {[%clk 0:02:54]}  Nb6 {[%clk 0:02:47]} 4. d4 {[%clk 0:02:47]}  e6 {[%clk 0:02:47]} 5. Qg4 {[%clk 0:02:25]}  h5 {[%clk 0:02:39]} 6. Qg3 {[%clk 0:02:17]}  g6 {[%clk 0:02:31]} 7. Bg5 {[%clk 0:02:13]}  Be7 {[%clk 0:02:30]} 8. Nf3 {[%clk 0:01:41]}  d5 {[%clk 0:02:25]} 9. h4 {[%clk 0:01:29]}  N8d7 {[%clk 0:02:16]} 10. Qf4 {[%clk 0:01:09]}  a6 {[%clk 0:02:13]} 11. Rh3 {[%clk 0:01:03]}  c5 {[%clk 0:02:11]} 12. O-O-O {[%clk 0:01:01]}  cxd4 {[%clk 0:02:08]} 13. Nxd4 {[%clk 0:00:59]}  Nc5 {[%clk 0:02:08]} 14. Rf3 {[%clk 0:00:56]}  Rh7 {[%clk 0:02:06]} 15. Nb3 {[%clk 0:00:52]}  Qc7 {[%clk 0:01:55]} 16. Bxe7 {[%clk 0:00:48]}  Qxe7 {[%clk 0:01:54]} 17. Nxc5 {[%clk 0:00:46]}  Qxc5 {[%clk 0:01:54]} 18. Bd3 {[%clk 0:00:40]}  Bd7 {[%clk 0:01:52]} 19. Qf6 {[%clk 0:00:37]}  Qe7 {[%clk 0:01:44]} 20. Qf4 {[%clk 0:00:29]}  O-O-O {[%clk 0:01:37]} 21. Qd4 {[%clk 0:00:29]}  Kc7 {[%clk 0:01:35]} 22. Kb1 {[%clk 0:00:24]}  Rc8 {[%clk 0:01:30]} 23. Rf6 {[%clk 0:00:20]}  Qd8 {[%clk 0:01:28]} 24. Qf4 {[%clk 0:00:19]}  Be8 {[%clk 0:01:26]} 25. Be2 {[%clk 0:00:18]}  Kb8 {[%clk 0:01:23]} 26. Qf3 {[%clk 0:00:16]}  Qc7 {[%clk 0:01:20]} 27. Rf4 {[%clk 0:00:14]}  Qxe5 {[%clk 0:01:18]} 28. Bd3 {[%clk 0:00:13]}  f5 {[%clk 0:01:15]} 29. g3 {[%clk 0:00:11]}  Rhc7 {[%clk 0:01:14]} 30. Rb4 {[%clk 0:00:11]}  Qd6 {[%clk 0:01:12]} 31. Rb3 {[%clk 0:00:11]}  Bf7 {[%clk 0:01:08]} 32. Be2 {[%clk 0:00:11]}  e5 {[%clk 0:01:08]} 33. a3 {[%clk 0:00:08]}  d4 {[%clk 0:01:08]} 34. Rb4 {[%clk 0:00:07]}  Qe6 {[%clk 0:01:04]} 35. Rxb6 {[%clk 0:00:02]}  Qxb6 {[%clk 0:01:01]} 36. Nd5 {[%clk 0:00:03]}  Bxd5 {[%clk 0:00:56]} 37. Qxd5 {[%clk 0:00:04]}  Rxc2 {[%clk 0:00:57]} 38. Qxe5+ {[%clk 0:00:03]}  Ka8 {[%clk 0:00:56]} 39. b4 {[%clk 0:00:02]}  Qc6 {[%clk 0:00:50]} 40. Bd3 {[%clk 0:00:01]}  Rc1+ {[%clk 0:00:46]} 41. Rxc1 {[%clk 0:00:01]}  Qxc1+ {[%clk 0:00:47]} 42. Ka2 {[%clk 0:00:01]}  Qd2+ {[%clk 0:00:47]} 0-1


[Site "https://www.chess.com"]

[Event "Titled Tuesday Blitz January 31 Late 2023"]
[White "Carbone, Diego"]
[Black "Bulgurlu, Okan"]
[WhiteFideId "3002179"]
[BlackFideId "6352316"]
[WhiteElo "2336"]
[BlackElo "1908"]
[Result "1-0"]
[Round "09"]
[TimeControl "180+2"]
[Date "2023.01.31"]
[WhiteClock "0:00:23"]
[BlackClock "0:00:02"]

1. d4 {[%clk 0:02:57]}  d5 {[%clk 0:02:58]} 2. c4 {[%clk 0:02:58]}  c6 {[%clk 0:02:57]} 3. Nf3 {[%clk 0:02:58]}  Nf6 {[%clk 0:02:57]} 4. e3 {[%clk 0:02:58]}  Bf5 {[%clk 0:02:55]} 5. Nc3 {[%clk 0:02:59]}  e6 {[%clk 0:02:55]} 6. Nh4 {[%clk 0:02:59]}  Bg4 {[%clk 0:02:44]} 7. Qb3 {[%clk 0:02:58]}  Qb6 {[%clk 0:02:43]} 8. h3 {[%clk 0:02:29]}  Qxb3 {[%clk 0:02:36]} 9. axb3 {[%clk 0:02:30]}  Bh5 {[%clk 0:02:35]} 10. g4 {[%clk 0:02:26]}  Bg6 {[%clk 0:02:35]} 11. Nxg6 {[%clk 0:02:24]}  hxg6 {[%clk 0:02:36]} 12. Bg2 {[%clk 0:02:22]}  Bb4 {[%clk 0:02:34]} 13. Ke2 {[%clk 0:02:21]}  Nbd7 {[%clk 0:02:31]} 14. Bd2 {[%clk 0:02:06]}  a6 {[%clk 0:02:16]} 15. g5 {[%clk 0:01:55]}  Bxc3 {[%clk 0:01:27]} 16. bxc3 {[%clk 0:01:34]}  Ne4 {[%clk 0:01:21]} 17. h4 {[%clk 0:01:30]}  O-O-O {[%clk 0:01:14]} 18. Be1 {[%clk 0:01:29]}  Nd6 {[%clk 0:01:12]} 19. cxd5 {[%clk 0:01:20]}  exd5 {[%clk 0:01:10]} 20. f3 {[%clk 0:01:08]}  Rde8 {[%clk 0:01:10]} 21. Kd3 {[%clk 0:01:05]}  Re7 {[%clk 0:00:42]} 22. Bg3 {[%clk 0:00:58]}  Nf5 {[%clk 0:00:41]} 23. Bf2 {[%clk 0:00:58]}  Nf8 {[%clk 0:00:31]} 24. e4 {[%clk 0:00:54]}  Nd6 {[%clk 0:00:23]} 25. Bg3 {[%clk 0:00:51]}  Ne8 {[%clk 0:00:14]} 26. Bh3+ {[%clk 0:00:44]}  Ne6 {[%clk 0:00:14]} 27. Rae1 {[%clk 0:00:40]}  Kd8 {[%clk 0:00:11]} 28. c4 {[%clk 0:00:36]}  dxc4+ {[%clk 0:00:07]} 29. bxc4 {[%clk 0:00:37]}  Nd6 {[%clk 0:00:07]} 30. Bxd6 {[%clk 0:00:33]}  Rd7 {[%clk 0:00:07]} 31. Bxe6 {[%clk 0:00:28]}  Rxd6 {[%clk 0:00:04]} 32. Bg4 {[%clk 0:00:25]}  Kc7 {[%clk 0:00:02]} 33. c5 {[%clk 0:00:23]}  Rdd8 {[%clk 0:00:02]} 34. Kc4 {[%clk 0:00:23]} 1-0


[Site "https://www.chess.com"]